[Event "-chT Youth Countries 2019"]
[Site "Wuerzburg"]
[Date "2019.10.04"]
[Round "4.3"]
[White "Stelmaszyk, Nico"]
[Black "Gallasch, Jonas"]
[Result "1/2-1/2"]
[ECO "B30"]
[WhiteElo "2190"]
[BlackElo "2099"]
[Annotator "NA"]
[PlyCount "88"]
[EventDate "2019.10.02"]
[EventType "team-tourn"]
[EventRounds "7"]
[EventCountry "GER"]
[SourceTitle "playchess.com"]
[Source "ChessBase"]
[SourceQuality "1"]
[WhiteTeam "Niedersachsen"]
[BlackTeam "Nordrhein-Westfalen"]
[TimeControl "40/5400+30:1800+30"]

1. e4 {[%emt 0:00:00]} c5 {[%emt 0:00:00]} 2. Nf3 {[%emt 0:00:00]} Nc6 {[%emt 0:00:00]} 3. c3 {[%emt 0:00:00]} d5 {[%emt 0:00:00]} 4. exd5 {[%emt 0:00:00]} Qxd5 {[%emt 0:00:00]} 5. d4 {[%emt 0:00:00]} Bf5 {[%emt 0:00:11]} 6. Be2 {[%emt 0:01:54]} cxd4 {[%emt 0:01:37]} 7. cxd4 {[%emt 0:01:27]} Bxb1 {[%emt 0:00:21]} 8. Rxb1 {[%emt 0:00:05]} e6 {[%emt 0:00:06]} 9. O-O {[%emt 0:01:57]} Nf6 {[%emt 0:01:13]} 10. Qa4 {[%emt 0:14:33]} a6 {[%emt 0:05:19]} 11. Bc4 {[%emt 0:14:20]} Qd7 {[%emt 0:08:49]} 12. Bg5 {[%emt 0:29:01]} Nd5 {[%emt 0:03:54]} 13. Rfe1 {[%emt 0:04:50]} h6 {[%emt 0:08:30]} 14. Bh4 {[%emt 0:01:00]} Bb4 {[%emt 0:00:40]} 15. Bxd5 {[%emt 0:03:12]} Qxd5 {[%emt 0:00:29]} 16. Rec1 {[%emt 0:04:13]} Bd6 {[%emt 0:08:28]} 17. Bg3 {[%emt 0:04:24]} O-O {[%emt 0:02:35]} 18. Bxd6 {[%emt 0:06:42]} Qxd6 {[%emt 0:00:07]} 19. Qb3 {[%emt 0:01:00]} b5 {[%emt 0:07:47]} 20. Rd1 {[%emt 0:01:50]} Rfd8 {[%emt 0:03:58]} 21. Rbc1 {[%emt 0:03:17]} Rac8 {[%emt 0:04:33]} 22. Qe3 {[%emt 0:01:17]} Ne7 {[%emt 0:03:36]} 23. Rxc8 {[%emt 0:01:11]} Rxc8 {[%emt 0:01:36]} 24. Rc1 {[%emt 0:00:06]} Rd8 {[%emt 0:03:33]} 25. Qe4 {[%emt 0:01:23]} Nf5 {[%emt 0:13:46]} 26. Rd1 {[%emt 0:00:46]} Qd5 {[%emt 0:03:54]} 27. Qxd5 {[%emt 0:00:07]} Rxd5 {[%emt 0:00:05]} 28. g4 {[%emt 0:00:17]} Ne7 {[%emt 0:02:00]} 29. Rc1 {[%emt 0:00:04]} Kf8 {[%emt 0:01:07]} 30. Kf1 {[%emt 0:00:48]} Rd6 {[%emt 0:03:43]} 31. Rc7 {[%emt 0:02:14]} Ke8 {[%emt 0:05:48]} 32. Ra7 {[%emt 0:00:39]} Nc8 {[%emt 0:04:31]} 33. Rc7 {[%emt 0:01:22]} Ne7 {[%emt 0:00:44]} 34. Ke2 {[%emt 0:00:54]} Nc6 {[%emt 0:00:57]} 35. Ke3 {[%emt 0:00:56]} Nb4 {[%emt 0:01:03]} 36. Rc8+ {[%emt 0:00:10]} Rd8 {[%emt 0:00:31]} 37. Rxd8+ {[%emt 0:00:02]} Kxd8 {[%emt 0:00:06]} 38. a3 {[%emt 0:00:13]} Nd5+ {[%emt 0:00:38]} 39. Kd3 {[%emt 0:00:41]} f6 {[%emt 0:01:16]} 40. Nd2 {[%emt 0:00:12]} a5 {[%emt 0:01:44]} 41. Nb3 {[%emt 0:32:18]} a4 {[%emt 0:01:27]} 42. Nc5 {[%emt 0:00:00]} Ke7 {[%emt 0:00:56]} 43. Ke4 {[%emt 0:00:00]} g5 {[%emt 0:04:51]} 44. Nd3 {[%emt 0:00:00]} Kd6 {[%emt 0:01:17] normal} 1/2-1/2

[Event "-chT Youth Countries 2019"]
[Site "Wuerzburg"]
[Date "2019.10.04"]
[Round "4.3"]
[White "Sulayev, Daniel"]
[Black "Köhler, Lukas"]
[Result "1/2-1/2"]
[ECO "A37"]
[WhiteElo "2149"]
[BlackElo "2040"]
[Annotator "NA"]
[PlyCount "83"]
[EventDate "2019.10.02"]
[EventType "team-tourn"]
[EventRounds "7"]
[EventCountry "GER"]
[SourceTitle "playchess.com"]
[Source "ChessBase"]
[SourceQuality "1"]
[WhiteTeam "Berlin"]
[BlackTeam "Bayern 2"]
[TimeControl "40/5400+30:1800+30"]

1. c4 {[%emt 0:00:21]} c5 {[%emt 0:00:00]} 2. g3 Nc6 {[%emt 0:00:30]} 3. Bg2 {[%emt 0:01:20]} g6 {[%emt 0:01:01]} 4. Nc3 {[%emt 0:02:56]} Bg7 {[%emt 0:00:08]} 5. Nf3 {[%emt 0:00:07]} d6 {[%emt 0:01:48]} 6. d3 {[%emt 0:00:32]} e5 {[%emt 0:03:12]} 7. O-O {[%emt 0:00:10]} Nge7 {[%emt 0:00:33]} 8. Ne1 {[%emt 0:00:18]} Be6 {[%emt 0:01:33]} 9. Nc2 {[%emt 0:00:13]} d5 {[%emt 0:10:59]} 10. cxd5 {[%emt 0:01:14]} Nxd5 {[%emt 0:01:31]} 11. Ne3 {[%emt 0:20:36]} Nde7 {[%emt 0:11:49]} 12. Nc4 {[%emt 0:04:51]} O-O {[%emt 0:10:13]} 13. Bg5 {[%emt 0:01:07]} f6 {[%emt 0:01:40]} 14. Be3 b6 {[%emt 0:02:41]} 15. a4 {[%emt 0:05:37]} Rb8 {[%emt 0:03:40]} 16. f4 {[%emt 0:09:09]} Nd5 {[%emt 0:11:27]} 17. Kh1 {[%emt 0:21:46]} Nxe3 {[%emt 0:12:25]} 18. Nxe3 {[%emt 0:00:30]} exf4 {[%emt 0:02:29]} 19. gxf4 {[%emt 0:00:52]} Nd4 {[%emt 0:02:14]} 20. Ned5 {[%emt 0:01:38]} Kh8 {[%emt 0:04:19]} 21. e3 {[%emt 0:08:50]} Nf5 {[%emt 0:02:38]} 22. Qe1 {[%emt 0:03:09]} Ne7 {[%emt 0:02:51]} 23. Nxe7 {[%emt 0:00:32]} Qxe7 {[%emt 0:00:06]} 24. e4 {[%emt 0:01:08]} f5 {[%emt 0:02:40]} 25. Qg3 {[%emt 0:03:07]} Rfd8 {[%emt 0:01:55]} 26. e5 {[%emt 0:01:04]} a6 {[%emt 0:01:37]} 27. Qe3 {[%emt 0:02:12]} Qd7 {[%emt 0:01:17]} 28. Rfd1 {[%emt 0:00:43]} Qd4 {[%emt 0:00:43]} 29. Qxd4 {[%emt 0:02:46]} Rxd4 {[%emt 0:02:46]} 30. Ne2 {[%emt 0:00:22]} Rb4 {[%emt 0:00:21]} 31. d4 {[%emt 0:01:43]} Rxb2 {[%emt 0:01:01]} 32. Bf3 {[%emt 0:00:32]} Rd8 {[%emt 0:01:35]} 33. dxc5 {[%emt 0:00:49]} Rc8 {[%emt 0:02:15]} 34. Nd4 {[%emt 0:01:39]} Bc4 {[%emt 0:00:32]} 35. Rdc1 {[%emt 0:01:33]} Rxc5 {[%emt 0:00:29]} 36. Rab1 {[%emt 0:00:46]} Rxb1 {[%emt 0:00:28]} 37. Rxb1 {[%emt 0:00:02]} b5 {[%emt 0:00:31]} 38. axb5 {[%emt 0:00:14]} axb5 {[%emt 0:00:28]} 39. Bc6 {[%emt 0:01:35]} Kg8 {[%emt 0:00:33]} 40. Bxb5 {[%emt 0:00:50]} Bd5+ {[%emt 0:00:30]} 41. Kg1 {[%emt 0:30:20]} g5 {[%emt 0:10:54]} 42. Bd7 {[%emt 0:00:00] normal} 1/2-1/2

[Event "-chT Youth Countries 2019"]
[Site "Wuerzburg"]
[Date "2019.10.04"]
[Round "4.3"]
[White "Wu, Luka"]
[Black "Jakob, Georg"]
[Result "1/2-1/2"]
[ECO "B27"]
[WhiteElo "2117"]
[BlackElo "1952"]
[Annotator "NA"]
[PlyCount "101"]
[EventDate "2019.10.02"]
[EventType "team-tourn"]
[EventRounds "7"]
[EventCountry "GER"]
[SourceTitle "playchess.com"]
[Source "ChessBase"]
[SourceQuality "1"]
[WhiteTeam "Baden 1"]
[BlackTeam "Team Süd"]
[TimeControl "40/5400+30:1800+30"]

1. e4 {[%emt 0:00:00]} c5 {[%emt 0:00:00]} 2. Nf3 {[%emt 0:00:00]} g6 {[%emt 0:00:00]} 3. d4 {[%emt 0:00:00]} cxd4 {[%emt 0:00:00]} 4. Qxd4 {[%emt 0:00:00]} Nf6 {[%emt 0:00:00]} 5. Nc3 {[%emt 0:00:00]} Nc6 {[%emt 0:00:15]} 6. Qa4 {[%emt 0:00:06]} d6 {[%emt 0:00:13]} 7. e5 {[%emt 0:00:07]} dxe5 {[%emt 0:00:09]} 8. Nxe5 {[%emt 0:00:07]} Bd7 {[%emt 0:01:08]} 9. Nxd7 {[%emt 0:00:12]} Qxd7 {[%emt 0:00:25]} 10. Be2 {[%emt 0:01:42]} Bg7 {[%emt 0:01:11]} 11. Be3 {[%emt 0:00:14]} O-O {[%emt 0:01:17]} 12. O-O {[%emt 0:02:25]} Rfd8 {[%emt 0:04:35]} 13. Rad1 {[%emt 0:01:30]} Qf5 {[%emt 0:01:15]} 14. Bf3 {[%emt 0:05:49]} Rdc8 {[%emt 0:22:45]} 15. Rd2 {[%emt 0:11:08]} a6 {[%emt 0:09:56]} 16. Bb6 {[%emt 0:04:54]} Rab8 {[%emt 0:03:10]} 17. Rfd1 {[%emt 0:08:41]} Ne5 {[%emt 0:05:10]} 18. Be2 {[%emt 0:00:42]} Qe6 {[%emt 0:01:56]} 19. Qb4 {[%emt 0:09:41]} Bh6 {[%emt 0:05:09]} 20. Rd8+ {[%emt 0:10:43]} Rxd8 {[%emt 0:00:24]} 21. Bxd8 {[%emt 0:00:44]} Nc6 {[%emt 0:10:42]} 22. Qh4 {[%emt 0:00:34]} Rxd8 {[%emt 0:05:25]} 23. Rxd8+ {[%emt 0:00:21]} Nxd8 {[%emt 0:00:01]} 24. Qxh6 {[%emt 0:00:09]} b5 {[%emt 0:00:51]} 25. a3 {[%emt 0:00:44]} Nd5 {[%emt 0:04:30]} 26. Qd2 {[%emt 0:04:53]} Nxc3 {[%emt 0:03:07]} 27. Qxd8+ {[%emt 0:02:25]} Kg7 {[%emt 0:00:05]} 28. Bf1 {[%emt 0:08:52]} Nd5 {[%emt 0:01:10]} 29. Qa5 {[%emt 0:01:42]} Qc6 {[%emt 0:01:20]} 30. Qd2 {[%emt 0:00:34]} e5 {[%emt 0:01:30]} 31. g3 {[%emt 0:00:55]} Nf6 {[%emt 0:03:26]} 32. Qe2 {[%emt 0:04:23]} Qc5 {[%emt 0:01:35]} 33. c4 {[%emt 0:00:51]} bxc4 {[%emt 0:02:29]} 34. Qxc4 {[%emt 0:00:06]} Qxc4 {[%emt 0:00:20]} 35. Bxc4 {[%emt 0:00:04]} a5 {[%emt 0:00:06]} 36. b4 {[%emt 0:00:30]} axb4 {[%emt 0:00:19]} 37. axb4 {[%emt 0:00:27]} Nd7 {[%emt 0:00:12]} 38. Kf1 {[%emt 0:00:14]} Kf6 {[%emt 0:00:25]} 39. Ke2 {[%emt 0:00:04]} Ke7 {[%emt 0:00:29]} 40. g4 {[%emt 0:00:47]} h6 {[%emt 0:06:47]} 41. Ke3 {[%emt 0:36:06]} f5 {[%emt 0:06:40]} 42. gxf5 {[%emt 0:00:00]} gxf5 {[%emt 0:00:06]} 43. Kf3 {[%emt 0:00:00]} Kf6 {[%emt 0:01:03]} 44. Kg3 {[%emt 0:00:00]} Kg5 {[%emt 0:00:48]} 45. f3 {[%emt 0:00:00]} Nb6 {[%emt 0:02:30]} 46. Bb3 {[%emt 0:00:00]} Nd7 {[%emt 0:02:27]} 47. Be6 {[%emt 0:00:00]} Nb6 {[%emt 0:00:49]} 48. Bb3 {[%emt 0:00:00]} Nd7 {[%emt 0:05:27]} 49. Be6 {[%emt 0:00:00]} Nb6 {[%emt 0:00:13]} 50. Bb3 {[%emt 0:00:00]} Nd7 {[%emt 0:01:12]} 51. Be6 {[%emt 0:00:00] normal} 1/2-1/2

[Event "-chT Youth Countries 2019"]
[Site "Wuerzburg"]
[Date "2019.10.04"]
[Round "4.3"]
[White "Schmekel, Florian"]
[Black "Richter, Nils"]
[Result "0-1"]
[ECO "E73"]
[WhiteElo "2102"]
[BlackElo "2213"]
[Annotator "NA"]
[PlyCount "76"]
[EventDate "2019.10.02"]
[EventType "team-tourn"]
[EventRounds "7"]
[EventCountry "GER"]
[SourceTitle "playchess.com"]
[Source "ChessBase"]
[SourceQuality "1"]
[WhiteTeam "Mecklenburg-Vorpommern"]
[BlackTeam "Württemberg"]
[TimeControl "40/5400+30:1800+30"]

1. d4 {[%emt 0:00:00]} Nf6 {[%emt 0:00:00]} 2. c4 {[%emt 0:00:00]} g6 {[%emt 0:00:00]} 3. Nc3 {[%emt 0:00:00]} Bg7 {[%emt 0:00:00]} 4. e4 {[%emt 0:00:00]} d6 {[%emt 0:00:00]} 5. Be2 {[%emt 0:00:00]} O-O {[%emt 0:00:29]} 6. Bg5 {[%emt 0:00:05]} c5 {[%emt 0:00:36]} 7. d5 {[%emt 0:00:24]} e6 {[%emt 0:00:36]} 8. Qd2 {[%emt 0:01:45]} exd5 {[%emt 0:01:19]} 9. exd5 {[%emt 0:01:29]} Qb6 {[%emt 0:00:54]} 10. Nf3 {[%emt 0:03:06]} Bf5 {[%emt 0:00:46]} 11. Rc1 {[%emt 0:05:18]} Ne4 {[%emt 0:00:42]} 12. Nxe4 {[%emt 0:07:33]} Bxe4 {[%emt 0:00:03]} 13. b3 {[%emt 0:00:47]} Nd7 {[%emt 0:00:30]} 14. O-O {[%emt 0:04:28]} a5 {[%emt 0:03:39]} 15. Bh6 {[%emt 0:03:57]} Bxh6 {[%emt 0:05:56]} 16. Qxh6 {[%emt 0:00:35]} Bxf3 {[%emt 0:00:18]} 17. Bxf3 {[%emt 0:00:33]} a4 {[%emt 0:07:02]} 18. Rc3 {[%emt 0:04:57]} Qd8 {[%emt 0:18:16]} 19. Bd1 {[%emt 0:02:10]} Qf6 {[%emt 0:01:41]} 20. Rh3 {[%emt 0:07:31]} Qg7 {[%emt 0:00:11]} 21. Qh4 {[%emt 0:02:07]} Rfe8 {[%emt 0:13:40]} 22. f4 {[%emt 0:07:22]} axb3 {[%emt 0:03:56]} 23. axb3 {[%emt 0:02:24]} Ra2 {[%emt 0:10:11]} 24. f5 {[%emt 0:04:29]} g5 {[%emt 0:01:14]} 25. Qg3 {[%emt 0:03:57]} Qd4+ {[%emt 0:03:51]} 26. Kh1 {[%emt 0:05:19]} f6 {[%emt 0:01:23]} 27. Qf3 {[%emt 0:05:05]} Re4 {[%emt 0:04:14]} 28. Qh5 {[%emt 0:07:22]} Nf8 {[%emt 0:00:02]} 29. Rg3 {[%emt 0:05:08]} Ra1 {[%emt 0:06:44]} 30. h3 {[%emt 0:03:14]} Qe5 {[%emt 0:04:24]} 31. Rd3 {[%emt 0:06:09]} Rh4 {[%emt 0:06:06]} 32. Qe2 {[%emt 0:01:48]} Rf4 {[%emt 0:01:14]} 33. Kg1 {[%emt 0:04:27]} Qxf5 {[%emt 0:03:01]} 34. Rxf4 {[%emt 0:01:18]} Qxf4 {[%emt 0:00:02]} 35. g3 {[%emt 0:00:44]} Qf5 {[%emt 0:00:37]} 36. Kg2 {[%emt 0:00:36]} Ra2 {[%emt 0:02:16]} 37. Bc2 {[%emt 0:01:15]} Qe5 {[%emt 0:00:28]} 38. Re3 {[%emt 0:00:40]} Qb2 {[%emt 0:00:21] normal} 0-1

[Event "-chT Youth Countries 2019"]
[Site "Wuerzburg"]
[Date "2019.10.04"]
[Round "4.3"]
[White "Grund, Sebastian"]
[Black "Popist, Florian"]
[Result "0-1"]
[ECO "E04"]
[WhiteElo "2054"]
[BlackElo "2019"]
[Annotator "NA"]
[PlyCount "74"]
[EventDate "2019.10.02"]
[EventType "team-tourn"]
[EventRounds "7"]
[EventCountry "GER"]
[SourceTitle "playchess.com"]
[Source "ChessBase"]
[SourceQuality "1"]
[WhiteTeam "Thüringen"]
[BlackTeam "Hamburg/Schleswig-Holstein"]
[TimeControl "40/5400+30:1800+30"]

1. d4 {[%emt 0:00:00]} d5 {[%emt 0:00:00]} 2. c4 {[%emt 0:00:00]} e6 {[%emt 0:00:00]} 3. Nf3 {[%emt 0:00:00]} Nf6 {[%emt 0:00:00]} 4. g3 {[%emt 0:00:09]} dxc4 {[%emt 0:00:07]} 5. Bg2 {[%emt 0:00:32]} Nc6 {[%emt 0:00:08]} 6. O-O {[%emt 0:00:31]} Rb8 {[%emt 0:00:18]} 7. Nc3 {[%emt 0:13:23]} b5 {[%emt 0:00:27]} 8. Re1 {[%emt 0:15:02]} Be7 {[%emt 0:01:39]} 9. e4 {[%emt 0:01:10]} O-O {[%emt 0:00:44]} 10. Bf4 {[%emt 0:06:15]} Nb4 {[%emt 0:10:27]} 11. Ne5 {[%emt 0:01:30]} Nd7 {[%emt 0:03:13]} 12. Qg4 {[%emt 0:10:47]} Nxe5 {[%emt 0:04:41]} 13. dxe5 {[%emt 0:00:27]} Kh8 {[%emt 0:01:48]} 14. Red1 {[%emt 0:02:19]} Qe8 {[%emt 0:06:55]} 15. Bf1 {[%emt 0:04:40]} a6 {[%emt 0:02:46]} 16. Rd2 {[%emt 0:04:09]} Bb7 {[%emt 0:02:27]} 17. Rad1 {[%emt 0:01:31]} Rd8 {[%emt 0:01:38]} 18. h4 {[%emt 0:02:40]} Rxd2 {[%emt 0:10:03]} 19. Rxd2 {[%emt 0:00:07]} Qc8 {[%emt 0:01:02]} 20. a3 {[%emt 0:06:05]} Nc6 {[%emt 0:02:03]} 21. a4 {[%emt 0:01:19]} b4 {[%emt 0:09:46]} 22. Nb1 {[%emt 0:01:47]} Na5 {[%emt 0:00:28]} 23. Be3 {[%emt 0:00:51]} Bc6 {[%emt 0:02:40]} 24. h5 {[%emt 0:01:45]} h6 {[%emt 0:01:14]} 25. Rc2 {[%emt 0:01:40]} Bxa4 {[%emt 0:00:49]} 26. Rc1 {[%emt 0:00:07]} Bb5 {[%emt 0:07:57]} 27. Nd2 {[%emt 0:00:23]} c5 {[%emt 0:02:55]} 28. Nxc4 {[%emt 0:00:39]} Nxc4 {[%emt 0:02:37]} 29. Bxc4 {[%emt 0:00:06]} Bxc4 {[%emt 0:00:49]} 30. Rxc4 {[%emt 0:00:07]} a5 {[%emt 0:00:13]} 31. Qd1 {[%emt 0:02:57]} Qc6 {[%emt 0:01:07]} 32. Qc1 {[%emt 0:01:03]} Rc8 {[%emt 0:03:49]} 33. f4 {[%emt 0:01:03]} a4 {[%emt 0:07:11]} 34. f5 {[%emt 0:01:10]} exf5 {[%emt 0:03:26]} 35. exf5 {[%emt 0:00:14]} Qf3 {[%emt 0:00:18]} 36. g4 {[%emt 0:09:17]} Rd8 {[%emt 0:03:20]} 37. Bd2 {[%emt 0:04:58]} Bg5 {[%emt 0:03:12] normal} 0-1

[Event "-chT Youth Countries 2019"]
[Site "Wuerzburg"]
[Date "2019.10.04"]
[Round "4.4"]
[White "Lutz, Ruben"]
[Black "Post, Hugo"]
[Result "1/2-1/2"]
[ECO "A45"]
[WhiteElo "2112"]
[BlackElo "2204"]
[Annotator "NA"]
[PlyCount "71"]
[EventDate "2019.10.02"]
[EventType "team-tourn"]
[EventRounds "7"]
[EventCountry "GER"]
[SourceTitle "playchess.com"]
[Source "ChessBase"]
[SourceQuality "1"]
[WhiteTeam "Sachsen"]
[BlackTeam "Sachsen-Anhalt"]
[TimeControl "40/5400+30:1800+30"]

1. d4 {[%emt 0:00:00]} Nf6 {[%emt 0:00:00]} 2. Bf4 {[%emt 0:00:00]} e6 {[%emt 0:00:02]} 3. e3 {[%emt 0:00:07]} c5 {[%emt 0:00:16]} 4. c3 {[%emt 0:00:26]} d5 {[%emt 0:00:22]} 5. Nd2 {[%emt 0:01:36]} Bd6 {[%emt 0:00:39]} 6. Bg3 {[%emt 0:00:37]} O-O {[%emt 0:01:34]} 7. Ngf3 {[%emt 0:00:20]} Qc7 {[%emt 0:03:15]} 8. Bd3 {[%emt 0:07:11]} Nbd7 {[%emt 0:01:41]} 9. O-O {[%emt 0:00:53]} b6 {[%emt 0:01:54]} 10. Bxd6 {[%emt 0:05:06]} Qxd6 {[%emt 0:00:08]} 11. e4 {[%emt 0:00:24]} e5 {[%emt 0:22:42]} 12. dxe5 {[%emt 0:17:22]} Nxe5 {[%emt 0:00:18]} 13. Nxe5 {[%emt 0:00:11]} Qxe5 {[%emt 0:00:04]} 14. f4 {[%emt 0:00:35]} Qe7 {[%emt 0:01:18]} 15. e5 {[%emt 0:01:32]} Ng4 {[%emt 0:01:27]} 16. Qe2 {[%emt 0:00:08]} c4 {[%emt 0:15:32]} 17. Bb1 {[%emt 0:09:33]} f6 {[%emt 0:01:20]} 18. h3 {[%emt 0:16:39]} Nh6 {[%emt 0:00:25]} 19. Nf3 {[%emt 0:00:56]} Nf7 {[%emt 0:11:13]} 20. Bc2 {[%emt 0:03:44]} Bd7 {[%emt 0:02:59]} 21. Rad1 {[%emt 0:02:31]} Qc5+ {[%emt 0:01:35]} 22. Kh2 {[%emt 0:05:25]} Rae8 {[%emt 0:00:42]} 23. Rfe1 {[%emt 0:01:45]} Bc8 {[%emt 0:06:58]} 24. Qd2 {[%emt 0:01:22]} fxe5 {[%emt 0:01:35]} 25. fxe5 {[%emt 0:00:20]} Qc7 {[%emt 0:00:27]} 26. Qd4 {[%emt 0:03:43]} Be6 {[%emt 0:07:20]} 27. Qh4 {[%emt 0:01:46]} g6 {[%emt 0:01:58]} 28. Kh1 {[%emt 0:02:33]} Qd8 {[%emt 0:02:15]} 29. Qg3 {[%emt 0:01:44]} Kg7 {[%emt 0:03:14]} 30. Nd4 {[%emt 0:01:06]} Qg5 {[%emt 0:02:03]} 31. Qxg5 {[%emt 0:02:05]} Nxg5 {[%emt 0:00:05]} 32. h4 {[%emt 0:00:56]} Nf7 {[%emt 0:02:22]} 33. Ba4 {[%emt 0:00:27]} Re7 {[%emt 0:00:05]} 34. Nxe6+ {[%emt 0:00:22]} Rxe6 {[%emt 0:00:04]} 35. Rxd5 {[%emt 0:00:06]} Rd8 {[%emt 0:04:01]} 36. Bd7 {[%emt 0:07:47] normal} 1/2-1/2

[Event "-chT Youth Countries 2019"]
[Site "Wuerzburg"]
[Date "2019.10.04"]
[Round "4.4"]
[White "Bakiev, Diyor"]
[Black "Glinzner, Alva"]
[Result "1/2-1/2"]
[ECO "B14"]
[WhiteElo "2088"]
[BlackElo "1897"]
[Annotator "NA"]
[PlyCount "82"]
[EventDate "2019.10.02"]
[EventType "team-tourn"]
[EventRounds "7"]
[EventCountry "GER"]
[SourceTitle "playchess.com"]
[Source "ChessBase"]
[SourceQuality "1"]
[WhiteTeam "Hessen"]
[BlackTeam "Schleswig-Holstein"]
[TimeControl "40/5400+30:1800+30"]

1. e4 {[%emt 0:00:00]} c6 {[%emt 0:00:00]} 2. d4 {[%emt 0:00:00]} d5 {[%emt 0:00:03]} 3. exd5 {[%emt 0:00:02]} cxd5 {[%emt 0:00:05]} 4. c4 {[%emt 0:00:32]} Nf6 {[%emt 0:00:27]} 5. Nc3 {[%emt 0:00:12]} g6 {[%emt 0:00:42]} 6. Qb3 {[%emt 0:00:59]} Bg7 {[%emt 0:01:22]} 7. cxd5 {[%emt 0:00:20]} O-O {[%emt 0:00:35]} 8. Nge2 {[%emt 0:00:59]} Nbd7 {[%emt 0:02:29]} 9. g3 {[%emt 0:02:24]} Nb6 {[%emt 0:01:34]} 10. Bg2 {[%emt 0:00:35]} Ne8 {[%emt 0:04:41]} 11. O-O {[%emt 0:04:50]} Nd6 {[%emt 0:00:53]} 12. Bf4 {[%emt 0:04:10]} a6 {[%emt 0:05:03]} 13. a4 {[%emt 0:11:07]} Bf5 {[%emt 0:07:12]} 14. a5 {[%emt 0:13:36]} Nbc8 {[%emt 0:05:13]} 15. Rfd1 {[%emt 0:04:41]} Qd7 {[%emt 0:09:52]} 16. Rac1 {[%emt 0:08:20]} h6 {[%emt 0:07:03]} 17. Qa4 {[%emt 0:13:55]} Qd8 {[%emt 0:00:50]} 18. b4 {[%emt 0:02:27]} g5 {[%emt 0:03:13]} 19. Be3 {[%emt 0:04:42]} Bg6 {[%emt 0:09:27]} 20. Qb3 {[%emt 0:03:47]} Rb8 {[%emt 0:09:16]} 21. Na4 {[%emt 0:04:54]} Nb5 {[%emt 0:03:54]} 22. Nec3 {[%emt 0:03:43]} Ncd6 {[%emt 0:02:52]} 23. Nb6 {[%emt 0:03:08]} Nxc3 {[%emt 0:01:18]} 24. Rxc3 {[%emt 0:01:11]} Bf5 {[%emt 0:01:16]} 25. Rcc1 {[%emt 0:04:12]} Nb5 {[%emt 0:05:18]} 26. Qb2 {[%emt 0:01:01]} Nd6 {[%emt 0:03:14]} 27. Qe2 {[%emt 0:01:13]} Nb5 {[%emt 0:05:51]} 28. Kh1 {[%emt 0:03:18]} Qd6 {[%emt 0:01:27]} 29. Qd2 Rfd8 {[%emt 0:01:53]} 30. f4 {[%emt 0:02:18]} g4 {[%emt 0:00:40]} 31. Bf2 {[%emt 0:00:36]} Qg6 {[%emt 0:00:44]} 32. Re1 {[%emt 0:00:48]} Bf6 {[%emt 0:01:09]} 33. Rcd1 {[%emt 0:01:26]} Bc2 {[%emt 0:01:16]} 34. Rc1 {[%emt 0:00:04]} Bf5 {[%emt 0:00:11]} 35. Rcd1 {[%emt 0:00:14]} Bc2 {[%emt 0:00:07]} 36. Rc1 {[%emt 0:00:04]} Bf5 {[%emt 0:00:16]} 37. Na4 {[%emt 0:01:32]} Qg7 {[%emt 0:01:31]} 38. Be4 {[%emt 0:01:06]} Bxe4+ {[%emt 0:01:13]} 39. Rxe4 {[%emt 0:00:02]} Rxd5 {[%emt 0:00:21]} 40. Nb6 {[%emt 0:00:34]} Rdd8 {[%emt 0:00:44]} 41. d5 {[%emt 0:05:35]} Qg6 {[%emt 0:11:01] normal} 1/2-1/2

[Event "-chT Youth Countries 2019"]
[Site "Wuerzburg"]
[Date "2019.10.04"]
[Round "4.4"]
[White "Boder, Jan"]
[Black "Lohvinov, Petro"]
[Result "1/2-1/2"]
[ECO "A15"]
[WhiteElo "2087"]
[BlackElo "2117"]
[Annotator "ChessBase"]
[PlyCount "72"]
[EventDate "2019.10.02"]
[EventType "team-tourn"]
[EventRounds "7"]
[EventCountry "GER"]
[SourceTitle "playchess.com"]
[Source "ChessBase"]
[SourceQuality "1"]
[WhiteTeam "Rheinland-Pfalz"]
[BlackTeam "Bayern 1"]
[TimeControl "40/5400+30:1800+30"]

1. c4 {[%emt 0:00:00]} Nf6 {[%emt 0:00:00]} 2. g3 {[%emt 0:00:00]} g6 {[%emt 0:00:00]} 3. Bg2 {[%emt 0:00:00]} Bg7 {[%emt 0:00:00]} 4. Nc3 {[%emt 0:00:05]} O-O {[%emt 0:00:00]} 5. e4 {[%emt 0:00:23]} d6 {[%emt 0:00:06]} 6. Nge2 {[%emt 0:00:08]} c5 {[%emt 0:00:06]} 7. d3 {[%emt 0:00:06]} Nc6 {[%emt 0:00:06]} 8. O-O {[%emt 0:00:05]} a6 {[%emt 0:00:54]} 9. f4 {[%emt 0:04:19]} Ne8 {[%emt 0:15:49]} 10. Be3 {[%emt 0:02:24]} Nd4 {[%emt 0:09:40]} 11. Rb1 {[%emt 0:05:45]} Bg4 {[%emt 0:12:19]} 12. h3 {[%emt 0:01:51]} Bxe2 {[%emt 0:00:23]} 13. Nxe2 {[%emt 0:00:08]} Nxe2+ {[%emt 0:04:56]} 14. Qxe2 {[%emt 0:00:29]} a5 {[%emt 0:03:27]} 15. e5 {[%emt 0:10:38]} dxe5 {[%emt 0:06:33]} 16. Bxc5 {[%emt 0:01:22]} Rc8 {[%emt 0:07:07]} 17. Ba3 {[%emt 0:00:38]} Qd4+ {[%emt 0:13:21]} 18. Kh2 {[%emt 0:05:32]} Nd6 {[%emt 0:01:57]} 19. Bxd6 {[%emt 0:01:47]} Qxd6 {[%emt 0:00:30]} 20. f5 {[%emt 0:03:09]} Rcd8 {[%emt 0:03:26]} 21. Rbd1 {[%emt 0:01:42]} b6 {[%emt 0:02:17]} 22. b3 {[%emt 0:03:03]} Qd4 {[%emt 0:05:06]} 23. Be4 {[%emt 0:08:35]} Rd6 {[%emt 0:02:33]} 24. Rf3 {[%emt 0:05:45]} Rf6 {[%emt 0:01:27]} 25. Rdf1 {[%emt 0:02:24]} Rd8 {[%emt 0:01:51]} 26. h4 {[%emt 0:02:11]} gxf5 {[%emt 0:05:22]} 27. Bxf5 {[%emt 0:00:55]} Kh8 {[%emt 0:00:11]} 28. Be4 {[%emt 0:03:16]} Rdd6 {[%emt 0:01:54]} 29. g4 {[%emt 0:01:20]} Rxf3 {[%emt 0:00:34]} 30. Rxf3 {[%emt 0:00:04]} Rf6 {[%emt 0:00:22]} 31. Rxf6 {[%emt 0:00:21]} Bxf6 {[%emt 0:01:21]} 32. g5 {[%emt 0:00:11]} Bg7 {[%emt 0:00:04]} 33. Qf3 {[%emt 0:00:40]} Qb2+ {[%emt 0:01:31]} 34. Kh3 {[%emt 0:00:18]} Kg8 {[%emt 0:00:52]} 35. Qf5 {[%emt 0:00:45]} Qxa2 {[%emt 0:00:45]} 36. h5 {[%emt 0:02:29]} Qe2 {[%emt 0:00:31] normal} 1/2-1/2